[Event "Live Chess"]
[Site "Chess.com"]
[Date "2023.05.21"]
[Round "-"]
[White "HoarseyHorsey"]
[Black "elizaveta_frundina"]
[Result "0-1"]
[WhiteElo "1467"]
[BlackElo "1562"]
[TimeControl "300"]
[EndTime "1:43:07 PDT"]
[Termination "elizaveta_frundina won by checkmate"]

1. d4 {[%clk 0:04:59.1]} 1... d5 {[%clk 0:04:58.5]} 2. c4 {[%clk 0:04:58.2]}
2... e6 {[%clk 0:04:57]} 3. Nc3 {[%clk 0:04:56.8]} 3... Nf6 {[%clk 0:04:56.2]}
4. cxd5 {[%clk 0:04:55.9]} 4... exd5 {[%clk 0:04:54.3]} 5. Bg5 {[%clk
0:04:54.2]} 5... Bb4 {[%clk 0:04:52.5]} 6. e3 {[%clk 0:04:52.9]} 6... O-O {[%clk
0:04:51.2]} 7. Nf3 {[%clk 0:04:45.8]} 7... Nbd7 {[%clk 0:04:46.4]} 8. Bd3 {[%clk
0:04:41.8]} 8... h6 {[%clk 0:04:44.1]} 9. Bh4 {[%clk 0:04:40.4]} 9... c6 {[%clk
0:04:42.7]} 10. O-O {[%clk 0:04:38.5]} 10... Qc7 {[%clk 0:04:34.4]} 11. Bg3
{[%clk 0:04:34.9]} 11... Bd6 {[%clk 0:04:31.2]} 12. Qc2 {[%clk 0:04:30.8]} 12...
Bxg3 {[%clk 0:04:14.9]} 13. hxg3 {[%clk 0:04:30.7]} 13... Re8 {[%clk 0:04:00.7]}
14. Rae1 {[%clk 0:04:24.5]} 14... a5 {[%clk 0:03:58]} 15. e4 {[%clk 0:04:21.5]}
15... dxe4 {[%clk 0:03:50.2]} 16. Nxe4 {[%clk 0:04:21.4]} 16... Nxe4 {[%clk
0:03:47.4]} 17. Bxe4 {[%clk 0:04:17.4]} 17... Nf6 {[%clk 0:03:42]} 18. Bd3
{[%clk 0:04:06.8]} 18... Bg4 {[%clk 0:03:33.9]} 19. Ne5 {[%clk 0:04:02.7]} 19...
Rad8 {[%clk 0:03:25.8]} 20. Nxg4 {[%clk 0:03:38.9]} 20... Nxg4 {[%clk
0:03:22.1]} 21. Bh7+ {[%clk 0:03:21.6]} 21... Kh8 {[%clk 0:03:20.1]} 22. Bf5
{[%clk 0:03:20.7]} 22... Nf6 {[%clk 0:03:01.2]} 23. Rxe8+ {[%clk 0:02:59.8]}
23... Rxe8 {[%clk 0:02:58.4]} 24. Qd2 {[%clk 0:02:58.1]} 24... Qd6 {[%clk
0:02:52.2]} 25. Bc2 {[%clk 0:02:42.7]} 25... Qd5 {[%clk 0:02:32.3]} 26. Qd3
{[%clk 0:02:31.9]} 26... Qh5 {[%clk 0:02:22.6]} 27. f3 {[%clk 0:02:16.7]} 27...
Re4 {[%clk 0:02:06.4]} 28. g4 {[%clk 0:02:00.9]} 28... Qh4 {[%clk 0:01:38.7]}
29. Qd1 {[%clk 0:01:31.5]} 29... Rxg4 {[%clk 0:01:26.1]} 30. Re1 {[%clk
0:01:21.1]} 30... Rg5 {[%clk 0:00:50.7]} 31. Qd3 {[%clk 0:01:12.6]} 31... g6
{[%clk 0:00:39.8]} 32. Qc4 {[%clk 0:00:46.4]} 32... Qxe1+ {[%clk 0:00:36.1]} 33.
Kh2 {[%clk 0:00:44.9]} 33... Qg3+ {[%clk 0:00:34.1]} 34. Kg1 {[%clk 0:00:43.7]}
34... Qxg2# {[%clk 0:00:33.1]} 0-1

[Event "Live Chess"]
[Site "Chess.com"]
[Date "2023.05.21"]
[Round "-"]
[White "EdenHazard8"]
[Black "JoshMcK"]
[Result "1-0"]
[WhiteElo "1951"]
[BlackElo "1529"]
[TimeControl "300"]
[EndTime "1:43:07 PDT"]
[Termination "EdenHazard8 won by resignation"]

1. e4 {[%clk 0:04:59.2]} 1... c6 {[%clk 0:04:58.4]} 2. d4 {[%clk 0:04:58.1]}
2... d5 {[%clk 0:04:57.3]} 3. e5 {[%clk 0:04:57.7]} 3... c5 {[%clk 0:04:56.1]}
4. c3 {[%clk 0:04:56.7]} 4... Nc6 {[%clk 0:04:54.2]} 5. Nf3 {[%clk 0:04:55.7]}
5... Bg4 {[%clk 0:04:50.7]} 6. Be2 {[%clk 0:04:54.2]} 6... e6 {[%clk 0:04:46.3]}
7. h3 {[%clk 0:04:52.8]} 7... Bxf3 {[%clk 0:04:45.1]} 8. Bxf3 {[%clk 0:04:52.7]}
8... cxd4 {[%clk 0:04:44.5]} 9. cxd4 {[%clk 0:04:52.5]} 9... Be7 {[%clk
0:04:42.2]} 10. O-O {[%clk 0:04:50.7]} 10... Qb6 {[%clk 0:04:38.6]} 11. Be3
{[%clk 0:04:49.4]} 11... Qxb2 {[%clk 0:04:30.8]} 12. Nd2 {[%clk 0:04:48.2]}
12... Nxd4 {[%clk 0:04:15]} 13. Rb1 {[%clk 0:04:45.6]} 13... Nxf3+ {[%clk
0:04:08.4]} 14. Nxf3 {[%clk 0:04:43.7]} 14... Qxa2 {[%clk 0:04:07.4]} 15. Rxb7
{[%clk 0:04:41.9]} 15... Bd8 {[%clk 0:03:51.3]} 16. Qd3 {[%clk 0:04:38.3]} 16...
Qc4 {[%clk 0:03:37.9]} 17. Qb1 {[%clk 0:04:36.5]} 17... Ne7 {[%clk 0:03:35.1]}
18. Rc1 {[%clk 0:04:34.5]} 18... Qa6 {[%clk 0:03:20.3]} 19. Bc5 {[%clk
0:04:21.4]} 19... Ng6 {[%clk 0:03:08.8]} 20. Bd6 {[%clk 0:04:15.8]} 20... Be7
{[%clk 0:02:47.4]} 21. Rcc7 {[%clk 0:04:04.6]} 21... Bxd6 {[%clk 0:02:38.2]} 22.
exd6 {[%clk 0:04:04.5]} 22... O-O {[%clk 0:02:37.2]} 23. d7 {[%clk 0:03:53.9]}
23... Rfd8 {[%clk 0:02:30.7]} 24. Nd4 {[%clk 0:03:50.1]} 24... Rab8 {[%clk
0:02:06.8]} 25. Nc6 {[%clk 0:03:39.7]} 25... Rxb7 {[%clk 0:01:59.2]} 26. Qxb7
{[%clk 0:03:39.6]} 26... Qxb7 {[%clk 0:01:42.1]} 27. Rxb7 {[%clk 0:03:39.5]}
27... Nf8 {[%clk 0:01:40.2]} 28. Nxd8 {[%clk 0:03:16.7]} 1-0

[Event "Live Chess"]
[Site "Chess.com"]
[Date "2023.05.21"]
[Round "-"]
[White "Ocelot32"]
[Black "Crowded_House"]
[Result "0-1"]
[WhiteElo "1366"]
[BlackElo "1662"]
[TimeControl "300"]
[EndTime "1:43:31 PDT"]
[Termination "Crowded_House won by resignation"]

1. e4 {[%clk 0:04:59.3]} 1... e6 {[%clk 0:04:58.7]} 2. d4 {[%clk 0:04:58]} 2...
d5 {[%clk 0:04:57.6]} 3. exd5 {[%clk 0:04:55.7]} 3... exd5 {[%clk 0:04:56.4]} 4.
Nf3 {[%clk 0:04:51.9]} 4... Bd6 {[%clk 0:04:55.8]} 5. h3 {[%clk 0:04:49.9]} 5...
Ne7 {[%clk 0:04:54.8]} 6. Bd3 {[%clk 0:04:49.2]} 6... f6 {[%clk 0:04:52.4]} 7.
O-O {[%clk 0:04:47.9]} 7... O-O {[%clk 0:04:51.4]} 8. c3 {[%clk 0:04:45.6]} 8...
Bf5 {[%clk 0:04:49.5]} 9. Be3 {[%clk 0:04:32.8]} 9... Nd7 {[%clk 0:04:46.4]} 10.
Bxf5 {[%clk 0:04:30.5]} 10... Nxf5 {[%clk 0:04:44.2]} 11. Bd2 {[%clk 0:04:25.3]}
11... Re8 {[%clk 0:04:41]} 12. Na3 {[%clk 0:04:22.1]} 12... a6 {[%clk
0:04:37.2]} 13. Nc2 {[%clk 0:04:20.9]} 13... c6 {[%clk 0:04:30.3]} 14. Ne3
{[%clk 0:04:19.9]} 14... Nxe3 {[%clk 0:04:27]} 15. Bxe3 {[%clk 0:04:18.9]} 15...
Qc7 {[%clk 0:04:23.2]} 16. Qd3 {[%clk 0:04:13.4]} 16... Bf4 {[%clk 0:04:19.5]}
17. Bxf4 {[%clk 0:04:08.2]} 17... Qxf4 {[%clk 0:04:17.6]} 18. Rfe1 {[%clk
0:04:06.8]} 18... g6 {[%clk 0:04:07.9]} 19. Re2 {[%clk 0:03:58.4]} 19... Kf7
{[%clk 0:04:05.6]} 20. Rae1 {[%clk 0:03:56.8]} 20... Rxe2 {[%clk 0:03:54.6]} 21.
Qxe2 {[%clk 0:03:54]} 21... Qd6 {[%clk 0:03:48.4]} 22. h4 {[%clk 0:03:43.7]}
22... Nf8 {[%clk 0:03:44.7]} 23. Qd2 {[%clk 0:03:37.6]} 23... Kg7 {[%clk
0:03:35.1]} 24. Nh2 {[%clk 0:03:26.3]} 24... f5 {[%clk 0:03:21.9]} 25. Nf3
{[%clk 0:03:23.1]} 25... h6 {[%clk 0:03:08.2]} 26. Ne5 {[%clk 0:03:17.8]} 26...
Re8 {[%clk 0:02:53.2]} 27. Qf4 {[%clk 0:03:13.9]} 27... Nd7 {[%clk 0:02:43.2]}
28. h5 {[%clk 0:02:59.2]} 28... gxh5 {[%clk 0:02:27.7]} 29. Qg3+ {[%clk
0:02:53.5]} 29... Kh7 {[%clk 0:02:18.2]} 30. Qf3 {[%clk 0:02:42.8]} 30... Nxe5
{[%clk 0:02:12.3]} 31. dxe5 {[%clk 0:02:34.2]} 31... Rxe5 {[%clk 0:02:08.6]} 32.
Rxe5 {[%clk 0:02:32.7]} 32... Qxe5 {[%clk 0:02:07.5]} 33. Qd1 {[%clk 0:02:21.6]}
33... c5 {[%clk 0:01:53.3]} 34. f3 {[%clk 0:02:20.6]} 34... d4 {[%clk
0:01:50.3]} 35. cxd4 {[%clk 0:02:19.1]} 35... Qxd4+ {[%clk 0:01:48.6]} 36. Qxd4
{[%clk 0:02:17.5]} 36... cxd4 {[%clk 0:01:48.2]} 37. Kf2 {[%clk 0:02:17]} 37...
Kg6 {[%clk 0:01:41.8]} 38. Ke2 {[%clk 0:02:16.4]} 38... Kg5 {[%clk 0:01:40.3]}
39. Kd3 {[%clk 0:02:14.7]} 39... Kf4 {[%clk 0:01:38]} 40. Kxd4 {[%clk 0:02:12]}
40... Kg3 {[%clk 0:01:37.1]} 41. Ke5 {[%clk 0:02:11.6]} 41... Kxg2 {[%clk
0:01:34.7]} 42. f4 {[%clk 0:02:08.6]} 42... h4 {[%clk 0:01:33.4]} 43. Kxf5
{[%clk 0:02:07.9]} 43... h3 {[%clk 0:01:31.8]} 44. Ke6 {[%clk 0:02:07.3]} 44...
h2 {[%clk 0:01:30.7]} 45. f5 {[%clk 0:02:06.7]} 45... h1=Q {[%clk 0:01:29.4]}
46. f6 {[%clk 0:02:06.3]} 46... Qe1+ {[%clk 0:01:26.5]} 47. Kf5 {[%clk
0:02:04.1]} 47... Qa5+ {[%clk 0:01:19.7]} 48. Kg6 {[%clk 0:02:00.4]} 48... Qxa2
{[%clk 0:01:16.8]} 49. f7 {[%clk 0:01:59]} 49... Qxf7+ {[%clk 0:01:11.5]} 50.
Kxf7 {[%clk 0:01:56.6]} 50... h5 {[%clk 0:01:09.7]} 0-1

[Event "Live Chess"]
[Site "Chess.com"]
[Date "2023.05.21"]
[Round "-"]
[White "BillythekidFellowes"]
[Black "mliszewski"]
[Result "1-0"]
[WhiteElo "2061"]
[BlackElo "1854"]
[TimeControl "300"]
[EndTime "1:43:38 PDT"]
[Termination "BillythekidFellowes won by resignation"]

1. e4 {[%clk 0:04:55.8]} 1... c6 {[%clk 0:04:59.1]} 2. c4 {[%clk 0:04:53.2]}
2... d5 {[%clk 0:04:59]} 3. d4 {[%clk 0:04:49.3]} 3... dxe4 {[%clk 0:04:56.2]}
4. Nc3 {[%clk 0:04:48.2]} 4... Nf6 {[%clk 0:04:54.1]} 5. Bg5 {[%clk 0:04:43.5]}
5... Bf5 {[%clk 0:04:49.1]} 6. Qb3 {[%clk 0:04:39.6]} 6... Qb6 {[%clk
0:04:30.8]} 7. Nge2 {[%clk 0:04:30.2]} 7... Nbd7 {[%clk 0:04:26.9]} 8. O-O-O
{[%clk 0:04:02.1]} 8... Qxb3 {[%clk 0:04:17.7]} 9. axb3 {[%clk 0:03:58.5]} 9...
b5 {[%clk 0:04:17]} 10. Ng3 {[%clk 0:03:56.6]} 10... Bg6 {[%clk 0:04:13.9]} 11.
cxb5 {[%clk 0:03:50.9]} 11... cxb5 {[%clk 0:04:12.5]} 12. Bxb5 {[%clk
0:03:50.8]} 12... e6 {[%clk 0:04:06]} 13. Bxf6 {[%clk 0:03:46.2]} 13... gxf6
{[%clk 0:04:04.8]} 14. Ngxe4 {[%clk 0:03:45]} 14... Bg7 {[%clk 0:04:02.6]} 15.
Nc5 {[%clk 0:03:36.7]} 15... Ke7 {[%clk 0:03:52.5]} 16. Bxd7 {[%clk 0:03:34.5]}
16... Rhd8 {[%clk 0:03:43.6]} 17. Bc6 {[%clk 0:03:33]} 17... Rac8 {[%clk
0:03:41.3]} 18. Be4 {[%clk 0:03:27]} 18... f5 {[%clk 0:03:39.8]} 19. Bb7 {[%clk
0:03:23.1]} 19... Rc7 {[%clk 0:03:33.7]} 20. Nb5 {[%clk 0:03:13.9]} 20... Bh6+
{[%clk 0:03:09.9]} 21. Kb1 {[%clk 0:02:54.2]} 21... Rxb7 {[%clk 0:03:07.1]} 22.
Nxb7 {[%clk 0:02:52.2]} 22... Rb8 {[%clk 0:03:06.6]} 23. N5d6 {[%clk 0:02:45.7]}
23... a5 {[%clk 0:02:57.9]} 24. d5 {[%clk 0:02:36.1]} 24... a4 {[%clk
0:02:54.8]} 25. bxa4 {[%clk 0:02:28.7]} 25... Ra8 {[%clk 0:02:44.2]} 26. a5
{[%clk 0:02:24.3]} 26... Rxa5 {[%clk 0:02:39.6]} 27. Nxa5 {[%clk 0:02:22.6]}
27... Kxd6 {[%clk 0:02:39.2]} 28. dxe6+ {[%clk 0:02:22]} 28... Kxe6 {[%clk
0:02:38.4]} 29. Rhe1+ {[%clk 0:02:21]} 1-0

[Event "Live Chess"]
[Site "Chess.com"]
[Date "2023.05.21"]
[Round "-"]
[White "EPotapov05"]
[Black "Delacorta"]
[Result "1-0"]
[WhiteElo "1412"]
[BlackElo "1414"]
[TimeControl "300"]
[EndTime "1:43:39 PDT"]
[Termination "EPotapov05 won by resignation"]

1. d4 {[%clk 0:04:53.4]} 1... e6 {[%clk 0:04:58.1]} 2. c4 {[%clk 0:04:51.5]}
2... f5 {[%clk 0:04:57.2]} 3. g3 {[%clk 0:04:46.2]} 3... Nf6 {[%clk 0:04:56.3]}
4. Bg2 {[%clk 0:04:45.2]} 4... c6 {[%clk 0:04:55.8]} 5. Nc3 {[%clk 0:04:42.7]}
5... d5 {[%clk 0:04:54.6]} 6. Qd3 {[%clk 0:04:38]} 6... Be7 {[%clk 0:04:51.9]}
7. Nh3 {[%clk 0:04:35.3]} 7... O-O {[%clk 0:04:45.8]} 8. Nf4 {[%clk 0:04:33.1]}
8... g5 {[%clk 0:04:36.9]} 9. Nh3 {[%clk 0:04:31.3]} 9... Ne4 {[%clk 0:04:24.1]}
10. O-O {[%clk 0:04:16]} 10... h6 {[%clk 0:03:49.6]} 11. f3 {[%clk 0:04:12.8]}
11... Nxc3 {[%clk 0:03:41.3]} 12. bxc3 {[%clk 0:04:11.8]} 12... Nd7 {[%clk
0:03:26.8]} 13. Rb1 {[%clk 0:04:07.8]} 13... Nf6 {[%clk 0:03:24.4]} 14. a4
{[%clk 0:03:43.3]} 14... Nh5 {[%clk 0:03:23.1]} 15. e3 {[%clk 0:03:31.7]} 15...
Bd7 {[%clk 0:03:04.4]} 16. Rxb7 {[%clk 0:03:28.4]} 16... g4 {[%clk 0:03:03]} 17.
fxg4 {[%clk 0:03:22.9]} 17... fxg4 {[%clk 0:03:01.6]} 18. Rxf8+ {[%clk
0:03:18.7]} 18... Kxf8 {[%clk 0:03:00.7]} 19. Nf4 {[%clk 0:03:06.4]} 19... Nxf4
{[%clk 0:02:58.8]} 20. exf4 {[%clk 0:03:04.7]} 20... Be8 {[%clk 0:02:37.9]} 21.
Qh7 {[%clk 0:02:57.3]} 1-0

[Event "Live Chess"]
[Site "Chess.com"]
[Date "2023.05.21"]
[Round "-"]
[White "skorpion49"]
[Black "MartynColebrook"]
[Result "1-0"]
[WhiteElo "1756"]
[BlackElo "1091"]
[TimeControl "300"]
[EndTime "1:43:50 PDT"]
[Termination "skorpion49 won by checkmate"]

1. e4 {[%clk 0:04:58.3]} 1... d5 {[%clk 0:04:55.1]} 2. exd5 {[%clk 0:04:57]}
2... Qxd5 {[%clk 0:04:54.2]} 3. Nc3 {[%clk 0:04:55.3]} 3... Qa5 {[%clk 0:04:53]}
4. d4 {[%clk 0:04:54.4]} 4... e5 {[%clk 0:04:52.1]} 5. dxe5 {[%clk 0:04:52.3]}
5... Qxe5+ {[%clk 0:04:50.9]} 6. Be2 {[%clk 0:04:51.5]} 6... Bc5 {[%clk
0:04:46.3]} 7. Nf3 {[%clk 0:04:49.4]} 7... Qd6 {[%clk 0:04:39.1]} 8. O-O {[%clk
0:04:29.9]} 8... Bf5 {[%clk 0:04:35.5]} 9. Nb5 {[%clk 0:04:22.4]} 9... Qxd1
{[%clk 0:04:16.5]} 10. Rxd1 {[%clk 0:04:19.2]} 10... Bb6 {[%clk 0:04:14.8]} 11.
Nbd4 {[%clk 0:04:14.9]} 11... Bg6 {[%clk 0:04:03.9]} 12. Bd3 {[%clk 0:04:13.5]}
12... Bxd3 {[%clk 0:03:59]} 13. Rxd3 {[%clk 0:04:11.8]} 13... Nf6 {[%clk
0:03:50.9]} 14. Re3+ {[%clk 0:04:02.3]} 14... Kd7 {[%clk 0:03:46.8]} 15. Rd3
{[%clk 0:03:57.8]} 15... Kc8 {[%clk 0:03:37.6]} 16. Bg5 {[%clk 0:03:26.8]} 16...
Ne4 {[%clk 0:03:27.4]} 17. Bh4 {[%clk 0:03:24.7]} 17... c5 {[%clk 0:03:23]} 18.
Nf5 {[%clk 0:03:19]} 18... g6 {[%clk 0:03:05.2]} 19. Ne7+ {[%clk 0:02:54.1]}
19... Kc7 {[%clk 0:02:58.6]} 20. Re1 {[%clk 0:02:26.2]} 20... f5 {[%clk
0:02:48]} 21. Nd5+ {[%clk 0:02:17]} 21... Kc6 {[%clk 0:02:45.1]} 22. Ne5+ {[%clk
0:02:08.9]} 22... Kb5 {[%clk 0:02:35.8]} 23. Rb3+ {[%clk 0:01:46.4]} 23... Ka6
{[%clk 0:02:18.6]} 24. Ra3+ {[%clk 0:01:26.9]} 24... Kb5 {[%clk 0:02:16.6]} 25.
c4# {[%clk 0:01:19.8]} 1-0

[Event "Live Chess"]
[Site "Chess.com"]
[Date "2023.05.21"]
[Round "-"]
[White "raminguy"]
[Black "elephantgerrald"]
[Result "1-0"]
[WhiteElo "1962"]
[BlackElo "706"]
[TimeControl "300"]
[EndTime "1:44:05 PDT"]
[Termination "raminguy won by checkmate"]

1. d4 {[%clk 0:04:59.8]} 1... d5 {[%clk 0:04:58.9]} 2. Nc3 {[%clk 0:04:59.7]}
2... Nf6 {[%clk 0:04:56.8]} 3. Bf4 {[%clk 0:04:59.6]} 3... e6 {[%clk 0:04:53.8]}
4. Nb5 {[%clk 0:04:58.4]} 4... c6 {[%clk 0:04:52.4]} 5. Nc7+ {[%clk 0:04:56.2]}
5... Kd7 {[%clk 0:04:48.4]} 6. Nxa8 {[%clk 0:04:56.1]} 6... Qa5+ {[%clk
0:04:47.4]} 7. c3 {[%clk 0:04:54.6]} 7... b6 {[%clk 0:04:40.7]} 8. Bxb8 {[%clk
0:04:52.9]} 8... Bb7 {[%clk 0:04:39.6]} 9. Nxb6+ {[%clk 0:04:51.2]} 9... Qxb6
{[%clk 0:04:37.6]} 10. Qb3 {[%clk 0:04:49.6]} 10... Qxb3 {[%clk 0:04:34.5]} 11.
axb3 {[%clk 0:04:48.5]} 11... e5 {[%clk 0:04:30]} 12. Bxe5 {[%clk 0:04:43.8]}
12... Ne4 {[%clk 0:04:26.9]} 13. Nf3 {[%clk 0:04:38.3]} 13... f6 {[%clk
0:04:16]} 14. Bg3 {[%clk 0:04:36.5]} 14... Nxg3 {[%clk 0:04:13.8]} 15. hxg3
{[%clk 0:04:36.4]} 15... c5 {[%clk 0:04:11.1]} 16. Rxa7 {[%clk 0:04:33.5]} 16...
cxd4 {[%clk 0:04:09]} 17. Rxb7+ {[%clk 0:04:31.6]} 17... Kd6 {[%clk 0:04:08.2]}
18. Nxd4 {[%clk 0:04:30.1]} 18... Be7 {[%clk 0:04:05.1]} 19. e3 {[%clk
0:04:26.8]} 19... Ke5 {[%clk 0:04:02.3]} 20. Bd3 {[%clk 0:04:24]} 20... Ra8
{[%clk 0:03:58.1]} 21. f4+ {[%clk 0:04:22.3]} 21... Kd6 {[%clk 0:03:56]} 22. O-O
{[%clk 0:04:20.7]} 22... Kc5 {[%clk 0:03:51.7]} 23. Rxe7 {[%clk 0:04:18.5]}
23... Ra1 {[%clk 0:03:49.3]} 24. Rxa1 {[%clk 0:04:16.3]} 24... g5 {[%clk
0:03:47.9]} 25. Ra5+ {[%clk 0:04:12.8]} 25... Kd6 {[%clk 0:03:46.2]} 26. Re6+
{[%clk 0:04:11.3]} 26... Kd7 {[%clk 0:03:44.8]} 27. Ra7+ {[%clk 0:04:10.2]}
27... Kd8 {[%clk 0:03:43]} 28. Nc6+ {[%clk 0:04:07.7]} 28... Kc8 {[%clk
0:03:41.5]} 29. Re8# {[%clk 0:04:06.6]} 1-0

[Event "Live Chess"]
[Site "Chess.com"]
[Date "2023.05.21"]
[Round "-"]
[White "RoaringKnights"]
[Black "smoggyrabbit"]
[Result "1-0"]
[WhiteElo "1036"]
[BlackElo "1707"]
[TimeControl "300"]
[EndTime "1:44:09 PDT"]
[Termination "RoaringKnights won on time"]

1. e4 {[%clk 0:04:56.7]} 1... e6 {[%clk 0:04:59.1]} 2. d4 {[%clk 0:04:53.1]}
2... d5 {[%clk 0:04:58.1]} 3. e5 {[%clk 0:04:50.4]} 3... c5 {[%clk 0:04:56.9]}
4. c3 {[%clk 0:04:48.2]} 4... Nc6 {[%clk 0:04:55.8]} 5. Bb5 {[%clk 0:04:45.9]}
5... Bd7 {[%clk 0:04:53.7]} 6. Nf3 {[%clk 0:04:38.1]} 6... Nxe5 {[%clk
0:04:51.7]} 7. Nxe5 {[%clk 0:04:24.5]} 7... Bxb5 {[%clk 0:04:50.1]} 8. Qh5
{[%clk 0:04:18.3]} 8... g6 {[%clk 0:04:32.7]} 9. Qf3 {[%clk 0:04:11.8]} 9... Qc7
{[%clk 0:04:13.5]} 10. Bf4 {[%clk 0:04:05.5]} 10... Bd6 {[%clk 0:03:53.7]} 11.
Nd2 {[%clk 0:03:53.4]} 11... cxd4 {[%clk 0:03:46.5]} 12. cxd4 {[%clk 0:03:48.3]}
12... f6 {[%clk 0:03:28.9]} 13. Nxg6 {[%clk 0:03:36.1]} 13... hxg6 {[%clk
0:03:23.6]} 14. Bxd6 {[%clk 0:03:33.4]} 14... Qxd6 {[%clk 0:03:22.2]} 15. O-O-O
{[%clk 0:03:30.7]} 15... Qa6 {[%clk 0:03:08.3]} 16. Kb1 {[%clk 0:03:28.3]} 16...
Bd3+ {[%clk 0:02:42]} 17. Ka1 {[%clk 0:03:27]} 17... Rc8 {[%clk 0:02:34]} 18.
Rc1 {[%clk 0:03:25.9]} 18... Bc2 {[%clk 0:02:14.9]} 19. Rhe1 {[%clk 0:03:11.5]}
19... Kf7 {[%clk 0:01:21.8]} 20. Re3 {[%clk 0:02:51.9]} 20... Ne7 {[%clk
0:01:05.4]} 21. Rc3 {[%clk 0:02:49.2]} 21... Rxc3 {[%clk 0:01:00.9]} 22. Qxc3
{[%clk 0:02:47.3]} 22... Rc8 {[%clk 0:00:59.3]} 23. Qb4 {[%clk 0:02:34.7]} 23...
Bf5 {[%clk 0:00:18.8]} 24. Rxc8 {[%clk 0:02:30.2]} 24... Nxc8 {[%clk 0:00:18.7]}
25. Qc3 {[%clk 0:02:24.9]} 25... Ne7 {[%clk 0:00:16.2]} 26. a3 {[%clk
0:02:22.4]} 26... Qe2 {[%clk 0:00:14.6]} 27. Qc1 {[%clk 0:02:19.2]} 27... Qd3
{[%clk 0:00:13.1]} 28. f3 {[%clk 0:02:15.1]} 28... Qxd4 {[%clk 0:00:12.1]} 29.
g4 {[%clk 0:02:12.8]} 29... Bd3 {[%clk 0:00:10.6]} 30. h4 {[%clk 0:02:10.2]}
30... Qa4 {[%clk 0:00:08.1]} 31. Qc3 {[%clk 0:02:04]} 31... Qd1+ {[%clk
0:00:05.7]} 32. Ka2 {[%clk 0:02:02.8]} 32... Bc4+ {[%clk 0:00:03.9]} 33. Nxc4
{[%clk 0:02:00.9]} 33... dxc4 {[%clk 0:00:01.9]} 34. Qxc4 {[%clk 0:01:59.4]}
34... Nd5 {[%clk 0:00:01.2]} 35. Qb3 {[%clk 0:01:52.9]} 1-0

[Event "Live Chess"]
[Site "Chess.com"]
[Date "2023.05.21"]
[Round "-"]
[White "Ferrarifan27"]
[Black "RamsayFlayer"]
[Result "1-0"]
[WhiteElo "2090"]
[BlackElo "1967"]
[TimeControl "300"]
[EndTime "1:44:16 PDT"]
[Termination "Ferrarifan27 won by resignation"]

1. e4 {[%clk 0:04:58.9]} 1... e5 {[%clk 0:04:58.5]} 2. Nf3 {[%clk 0:04:57.4]}
2... Nc6 {[%clk 0:04:56.9]} 3. Bb5 {[%clk 0:04:55.4]} 3... a6 {[%clk 0:04:55.6]}
4. Ba4 {[%clk 0:04:52.8]} 4... Nf6 {[%clk 0:04:55.2]} 5. O-O {[%clk 0:04:51]}
5... Be7 {[%clk 0:04:54.8]} 6. Re1 {[%clk 0:04:49.1]} 6... b5 {[%clk 0:04:54.5]}
7. Bb3 {[%clk 0:04:46.9]} 7... d6 {[%clk 0:04:54.2]} 8. d4 {[%clk 0:04:44]} 8...
Bg4 {[%clk 0:04:52.4]} 9. dxe5 {[%clk 0:04:42.2]} 9... dxe5 {[%clk 0:04:46.1]}
10. Nbd2 {[%clk 0:04:40.7]} 10... O-O {[%clk 0:04:39.2]} 11. h3 {[%clk
0:04:39.4]} 11... Bh5 {[%clk 0:04:36.4]} 12. c3 {[%clk 0:04:35.5]} 12... Na5
{[%clk 0:04:05.9]} 13. Bc2 {[%clk 0:04:33.7]} 13... Nc4 {[%clk 0:04:02.3]} 14.
Nxc4 {[%clk 0:04:29.4]} 14... Qxd1 {[%clk 0:03:59.7]} 15. Bxd1 {[%clk
0:04:28.4]} 15... Bxf3 {[%clk 0:03:54.6]} 16. Bxf3 {[%clk 0:04:24.8]} 16... bxc4
{[%clk 0:03:51.3]} 17. Bg5 {[%clk 0:04:21.5]} 17... Rfd8 {[%clk 0:03:44.4]} 18.
Rad1 {[%clk 0:04:10.3]} 18... h6 {[%clk 0:03:38.2]} 19. Bxf6 {[%clk 0:04:06.9]}
19... Bxf6 {[%clk 0:03:36.3]} 20. Be2 {[%clk 0:04:05.6]} 20... Rd6 {[%clk
0:03:29.5]} 21. Rxd6 {[%clk 0:04:01.2]} 21... cxd6 {[%clk 0:03:28.5]} 22. Bxc4
{[%clk 0:04:00.5]} 22... Rb8 {[%clk 0:03:19.2]} 23. b3 {[%clk 0:03:58.7]} 23...
a5 {[%clk 0:03:16.1]} 24. Rd1 {[%clk 0:03:56.8]} 24... Be7 {[%clk 0:03:13]} 25.
Rd5 {[%clk 0:03:54.6]} 25... Ra8 {[%clk 0:02:44.9]} 26. a4 {[%clk 0:03:50.1]}
26... Kf8 {[%clk 0:02:40.7]} 27. Bb5 {[%clk 0:03:47.2]} 27... Rc8 {[%clk
0:02:33.7]} 28. Bc4 {[%clk 0:03:41.6]} 28... Rc5 {[%clk 0:02:30.2]} 29. Rd3
{[%clk 0:03:32]} 29... f6 {[%clk 0:02:25.4]} 30. Bd5 {[%clk 0:03:28.2]} 30...
Ke8 {[%clk 0:02:16.3]} 31. b4 {[%clk 0:03:26.9]} 31... axb4 {[%clk 0:02:11.7]}
32. cxb4 {[%clk 0:03:26.8]} 32... Rc1+ {[%clk 0:02:09.5]} 33. Kh2 {[%clk
0:03:25.1]} 33... Ra1 {[%clk 0:02:01.1]} 34. a5 {[%clk 0:03:22.3]} 34... Rb1
{[%clk 0:01:59.1]} 35. a6 {[%clk 0:03:17.2]} 35... Ra1 {[%clk 0:01:51.2]} 36. b5
{[%clk 0:03:15.3]} 36... Kd8 {[%clk 0:01:49.8]} 37. Bb7 {[%clk 0:03:01.2]} 37...
Kc7 {[%clk 0:01:39.2]} 38. Rc3+ {[%clk 0:02:58.8]} 38... Kb6 {[%clk 0:01:38.5]}
39. Bc6 {[%clk 0:02:38.9]} 39... Bd8 {[%clk 0:01:32.6]} 40. Be8 {[%clk
0:02:32.5]} 40... Bc7 {[%clk 0:01:31.3]} 41. Rc6+ {[%clk 0:02:30.2]} 41... Kxb5
{[%clk 0:01:29.8]} 42. Rxc7+ {[%clk 0:02:29.3]} 42... Kxa6 {[%clk 0:01:29]} 1-0